[Event "Early-Titled-Tuesday-Blitz-February-06-2024"]
[Site "Chess.com"]
[Date "2024.02.06"]
[Round "10"]
[White "FrenchMonster2002"]
[Black "Arystanner"]
[Result "1/2-1/2"]
[WhiteElo "2488"]
[BlackElo "2851"]
[TimeControl "180+1"]
[EndTime "9:55:48 PST"]
[Termination "Game drawn by repetition"]

1. e4 {[%clk 0:02:56.7]} 1... e5 {[%clk 0:02:59.4]} 2. Nf3 {[%clk 0:02:56.1]}
2... Nf6 {[%clk 0:03:00.1]} 3. Nxe5 {[%clk 0:02:53.8]} 3... d6 {[%clk
0:03:00.7]} 4. Nf3 {[%clk 0:02:53.7]} 4... Nxe4 {[%clk 0:03:01.4]} 5. c4 {[%clk
0:02:52.3]} 5... Be7 {[%clk 0:03:00.6]} 6. Nc3 {[%clk 0:02:51.8]} 6... Nxc3
{[%clk 0:03:00.2]} 7. dxc3 {[%clk 0:02:52.7]} 7... O-O {[%clk 0:03:00.8]} 8. Bd3
{[%clk 0:02:52.2]} 8... Nd7 {[%clk 0:03:00.6]} 9. Qc2 {[%clk 0:02:52.6]} 9... h6
{[%clk 0:02:59.8]} 10. Bf4 {[%clk 0:02:48.8]} 10... Bf6 {[%clk 0:02:55]} 11.
O-O-O {[%clk 0:02:44]} 11... Nc5 {[%clk 0:02:54.1]} 12. Bh7+ {[%clk 0:02:36]}
12... Kh8 {[%clk 0:02:53.9]} 13. Bf5 {[%clk 0:02:14.2]} 13... Bxf5 {[%clk
0:02:54]} 14. Qxf5 {[%clk 0:02:14.1]} 14... Qd7 {[%clk 0:02:54.7]} 15. Qxd7
{[%clk 0:02:12.3]} 15... Nxd7 {[%clk 0:02:54.8]} 16. Rhe1 {[%clk 0:02:11.5]}
16... Rfe8 {[%clk 0:02:54.7]} 17. Rxe8+ {[%clk 0:02:07.3]} 17... Rxe8 {[%clk
0:02:54.6]} 18. Re1 {[%clk 0:02:07.7]} 18... Rxe1+ {[%clk 0:02:54.9]} 19. Nxe1
{[%clk 0:02:08.6]} 19... g5 {[%clk 0:02:46.8]} 20. Be3 {[%clk 0:02:06.6]} 20...
b6 {[%clk 0:02:40.8]} 21. Nd3 {[%clk 0:01:59.3]} 21... Kg7 {[%clk 0:02:40.4]}
22. Kc2 {[%clk 0:01:39.5]} 22... Kg6 {[%clk 0:02:40.1]} 23. g4 {[%clk
0:01:30.1]} 23... a5 {[%clk 0:02:21]} 24. h3 {[%clk 0:01:25.7]} 24... Be7 {[%clk
0:02:17.5]} 25. f3 {[%clk 0:01:12.3]} 25... f5 {[%clk 0:02:17.2]} 26. Bd4 {[%clk
0:01:07.1]} 26... Bf6 {[%clk 0:02:16.8]} 27. Kd2 {[%clk 0:01:02]} 27... Nf8
{[%clk 0:02:08]} 28. Ke2 {[%clk 0:00:42.8]} 28... Bxd4 {[%clk 0:02:07]} 29. cxd4
{[%clk 0:00:43]} 29... Ne6 {[%clk 0:02:07.8]} 30. Ke3 {[%clk 0:00:37.6]} 30...
Kf6 {[%clk 0:01:58.2]} 31. d5 {[%clk 0:00:29.9]} 31... Nd8 {[%clk 0:01:45.7]}
32. Kd4 {[%clk 0:00:28.2]} 32... Nf7 {[%clk 0:01:40.8]} 33. b3 {[%clk
0:00:14.6]} 33... Kg6 {[%clk 0:01:39.7]} 34. a3 {[%clk 0:00:13.6]} 34... h5
{[%clk 0:01:40.4]} 35. b4 {[%clk 0:00:12.3]} 35... axb4 {[%clk 0:01:41.3]} 36.
axb4 {[%clk 0:00:12.7]} 36... h4 {[%clk 0:01:35.1]} 37. c5 {[%clk 0:00:11]}
37... Kf6 {[%clk 0:01:33.6]} 38. cxb6 {[%clk 0:00:07.8]} 38... cxb6 {[%clk
0:01:34.5]} 39. b5 {[%clk 0:00:05.4]} 39... Nh8 {[%clk 0:01:29.8]} 40. Nb2
{[%clk 0:00:04.4]} 40... Ng6 {[%clk 0:01:27.7]} 41. Nc4 {[%clk 0:00:04]} 41...
Nf4 {[%clk 0:01:28.5]} 42. Nxb6 {[%clk 0:00:03.5]} 42... Nxh3 {[%clk 0:01:29.2]}
43. Nd7+ {[%clk 0:00:02.9]} 43... Ke7 {[%clk 0:01:29.8]} 44. Nb8 {[%clk
0:00:01.5]} 44... Ng1 {[%clk 0:01:30]} 45. Nc6+ {[%clk 0:00:01.9]} 45... Kd7
{[%clk 0:01:29.5]} 46. gxf5 {[%clk 0:00:01.9]} 46... h3 {[%clk 0:01:30]} 47. f6
{[%clk 0:00:02.4]} 47... Nxf3+ {[%clk 0:01:30.7]} 48. Ke4 {[%clk 0:00:01.9]}
48... g4 {[%clk 0:01:25.6]} 49. f7 {[%clk 0:00:01.9]} 49... Ng5+ {[%clk
0:01:26.3]} 50. Kf4 {[%clk 0:00:02.1]} 50... Nxf7 {[%clk 0:01:27.2]} 51. Kg3
{[%clk 0:00:01.8]} 51... Kc7 {[%clk 0:01:27.3]} 52. Kh2 {[%clk 0:00:01.3]} 52...
Kb6 {[%clk 0:01:27.1]} 53. Nd4 {[%clk 0:00:01.7]} 53... Ne5 {[%clk 0:01:27.6]}
54. Nf5 {[%clk 0:00:01.7]} 54... Kc5 {[%clk 0:01:23.8]} 55. b6 {[%clk
0:00:02.1]} 55... Kxd5 {[%clk 0:01:23.5]} 56. b7 {[%clk 0:00:02.6]} 56... Nd7
{[%clk 0:01:21.5]} 57. Nh6 {[%clk 0:00:02]} 57... Kc6 {[%clk 0:01:14.9]} 58.
Nxg4 {[%clk 0:00:02.1]} 58... Kxb7 {[%clk 0:01:15.5]} 59. Kxh3 {[%clk
0:00:02.7]} 59... Kc6 {[%clk 0:01:16.2]} 60. Kg3 {[%clk 0:00:03.1]} 60... Kd5
{[%clk 0:01:16.7]} 61. Kf3 {[%clk 0:00:03]} 61... Ne5+ {[%clk 0:01:17.2]} 62.
Nxe5 {[%clk 0:00:02]} 62... Kxe5 {[%clk 0:01:18.1]} 63. Ke3 {[%clk 0:00:02.2]}
63... Kd5 {[%clk 0:01:18.8]} 64. Kd3 {[%clk 0:00:02.7]} 64... Kc5 {[%clk
0:01:19.5]} 65. Kc3 {[%clk 0:00:03.3]} 65... Kd5 {[%clk 0:01:20.1]} 66. Kd3
{[%clk 0:00:03.9]} 66... Ke6 {[%clk 0:01:20.8]} 67. Kd4 {[%clk 0:00:03.1]} 67...
Ke7 {[%clk 0:01:20.7]} 68. Kd5 {[%clk 0:00:03.3]} 68... Kd7 {[%clk 0:01:21.6]}
69. Kd4 {[%clk 0:00:03.8]} 69... Ke6 {[%clk 0:01:22.5]} 70. Ke4 {[%clk
0:00:04.2]} 70... Ke7 {[%clk 0:01:22.9]} 71. Kd5 {[%clk 0:00:04.6]} 71... Kd7
{[%clk 0:01:23.7]} 72. Kd4 {[%clk 0:00:05.1]} 72... Ke6 {[%clk 0:01:24.6]} 73.
Ke4 {[%clk 0:00:05.6]} 73... d5+ {[%clk 0:01:25.5]} 74. Kd4 {[%clk 0:00:06]}
74... Kd6 {[%clk 0:01:26.4]} 75. Kd3 {[%clk 0:00:06.5]} 75... Kc5 {[%clk
0:01:26.9]} 76. Kc3 {[%clk 0:00:06.9]} 76... d4+ {[%clk 0:01:27.8]} 77. Kd3
{[%clk 0:00:07.4]} 77... Kd5 {[%clk 0:01:28.7]} 78. Kd2 {[%clk 0:00:07.8]} 78...
Kc4 {[%clk 0:01:29.6]} 79. Kc2 {[%clk 0:00:08.2]} 79... d3+ {[%clk 0:01:30.5]}
80. Kd2 {[%clk 0:00:08.7]} 80... Kd4 {[%clk 0:01:31.4]} 81. Kd1 {[%clk
0:00:09.2]} 81... Kc3 {[%clk 0:01:32.3]} 82. Kc1 {[%clk 0:00:09.7]} 82... Kc4
{[%clk 0:01:33.2]} 83. Kd2 {[%clk 0:00:10]} 83... Kd4 {[%clk 0:01:34.1]} 84. Kd1
{[%clk 0:00:10.3]} 84... Ke3 {[%clk 0:01:34.9]} 85. Ke1 {[%clk 0:00:10.7]} 85...
Ke4 {[%clk 0:01:35.8]} 86. Kd2 {[%clk 0:00:11.2]} 86... Kd4 {[%clk 0:01:36.5]}
1/2-1/2

[Event "Early-Titled-Tuesday-Blitz-February-06-2024"]
[Site "Chess.com"]
[Date "2024.02.06"]
[Round "10"]
[White "alvarorodriguezavila"]
[Black "RianKapriaga"]
[Result "1-0"]
[WhiteElo "2371"]
[BlackElo "2276"]
[TimeControl "180+1"]
[EndTime "9:55:51 PST"]
[Termination "alvarorodriguezavila won on time"]

1. b3 {[%clk 0:03:00.9]} 1... g6 {[%clk 0:02:58.7]} 2. Bb2 {[%clk 0:03:01.8]}
2... Nf6 {[%clk 0:02:57.2]} 3. c4 {[%clk 0:03:00.9]} 3... Bg7 {[%clk 0:02:54.1]}
4. g3 {[%clk 0:03:01.5]} 4... O-O {[%clk 0:02:53.7]} 5. Bg2 {[%clk 0:03:02.2]}
5... c6 {[%clk 0:02:53.6]} 6. Nf3 {[%clk 0:03:01.6]} 6... d5 {[%clk 0:02:53.3]}
7. cxd5 {[%clk 0:03:02.1]} 7... cxd5 {[%clk 0:02:51.2]} 8. O-O {[%clk
0:03:02.7]} 8... Nc6 {[%clk 0:02:51.1]} 9. d3 {[%clk 0:03:01.3]} 9... Bg4 {[%clk
0:02:48.6]} 10. Nbd2 {[%clk 0:03:01.7]} 10... Qd7 {[%clk 0:02:47.7]} 11. Rc1
{[%clk 0:03:00.7]} 11... Bh3 {[%clk 0:02:45.9]} 12. Ne5 {[%clk 0:02:46.7]} 12...
Nxe5 {[%clk 0:02:43.7]} 13. Bxe5 {[%clk 0:02:47.6]} 13... Bxg2 {[%clk
0:02:43.3]} 14. Kxg2 {[%clk 0:02:48.5]} 14... Rac8 {[%clk 0:02:42.1]} 15. Nf3
{[%clk 0:02:44.7]} 15... Rxc1 {[%clk 0:02:26.2]} 16. Qxc1 {[%clk 0:02:44.7]}
16... Rc8 {[%clk 0:02:26.6]} 17. Qb2 {[%clk 0:02:42.4]} 17... Qc6 {[%clk
0:02:12.7]} 18. Nd4 {[%clk 0:02:39.3]} 18... Qa6 {[%clk 0:02:12]} 19. a4 {[%clk
0:02:17]} 19... Ne8 {[%clk 0:02:00]} 20. Bxg7 {[%clk 0:02:16.6]} 20... Nxg7
{[%clk 0:02:00.6]} 21. Rc1 {[%clk 0:02:16.2]} 21... b6 {[%clk 0:01:58.3]} 22.
Nb5 {[%clk 0:02:12.9]} 22... Ne6 {[%clk 0:01:16.6]} 23. Rxc8+ {[%clk 0:02:06.6]}
23... Qxc8 {[%clk 0:01:15.2]} 24. Nxa7 {[%clk 0:02:06.9]} 24... Qb7 {[%clk
0:01:13.9]} 25. Nb5 {[%clk 0:02:07.4]} 25... d4+ {[%clk 0:01:13.4]} 26. f3
{[%clk 0:02:07.4]} 26... Qd5 {[%clk 0:01:12.2]} 27. b4 {[%clk 0:02:00.8]} 27...
h5 {[%clk 0:01:10]} 28. Qc2 {[%clk 0:01:56.3]} 28... h4 {[%clk 0:01:06.5]} 29.
Qc4 {[%clk 0:01:56.7]} 29... Qe5 {[%clk 0:01:05.1]} 30. Qc2 {[%clk 0:01:27]}
30... Qf5 {[%clk 0:01:04.3]} 31. Qc6 {[%clk 0:01:18.6]} 31... h3+ {[%clk
0:00:49.1]} 32. Kf2 {[%clk 0:01:18.7]} 32... Qe5 {[%clk 0:00:37.3]} 33. Qe4
{[%clk 0:01:16.8]} 33... Qg5 {[%clk 0:00:17.1]} 34. Nxd4 {[%clk 0:01:12.1]}
34... Nxd4 {[%clk 0:00:15.8]} 35. Qxd4 {[%clk 0:01:12.6]} 35... Qc1 {[%clk
0:00:15.8]} 36. Qh4 {[%clk 0:00:56.5]} 36... Qa1 {[%clk 0:00:13.5]} 37. Qxh3
{[%clk 0:00:55.1]} 37... Qxa4 {[%clk 0:00:12.6]} 38. Qc8+ {[%clk 0:00:54]} 38...
Kg7 {[%clk 0:00:11.5]} 39. Qc3+ {[%clk 0:00:54.4]} 39... f6 {[%clk 0:00:10.8]}
40. Qc4 {[%clk 0:00:53.5]} 40... b5 {[%clk 0:00:10]} 41. Qe4 {[%clk 0:00:53.5]}
41... e5 {[%clk 0:00:08.1]} 42. Kg2 {[%clk 0:00:43.5]} 42... Qa7 {[%clk
0:00:06.3]} 43. f4 {[%clk 0:00:38.7]} 43... exf4 {[%clk 0:00:05.2]} 44. Qxf4
{[%clk 0:00:39.3]} 44... Qd7 {[%clk 0:00:04.2]} 45. Qe4 {[%clk 0:00:38.3]} 45...
g5 {[%clk 0:00:03.2]} 46. h3 {[%clk 0:00:31.9]} 46... Qc7 {[%clk 0:00:02.1]} 47.
d4 {[%clk 0:00:26.8]} 1-0

[Event "Early-Titled-Tuesday-Blitz-February-06-2024"]
[Site "Chess.com"]
[Date "2024.02.06"]
[Round "10"]
[White "Ind1anStar"]
[Black "eightbyeightchess"]
[Result "0-1"]
[WhiteElo "2586"]
[BlackElo "2401"]
[TimeControl "180+1"]
[EndTime "9:55:52 PST"]
[Termination "eightbyeightchess won by resignation"]

1. d4 {[%clk 0:02:51.9]} 1... d5 {[%clk 0:02:56.7]} 2. Nf3 {[%clk 0:02:51.9]}
2... c5 {[%clk 0:02:49.5]} 3. c3 {[%clk 0:02:50.9]} 3... Nc6 {[%clk 0:02:49.2]}
4. g3 {[%clk 0:02:44.2]} 4... Nf6 {[%clk 0:02:47.7]} 5. Bg2 {[%clk 0:02:41.1]}
5... Bf5 {[%clk 0:02:47.5]} 6. O-O {[%clk 0:02:40.9]} 6... h6 {[%clk 0:02:47.6]}
7. dxc5 {[%clk 0:02:40.4]} 7... e5 {[%clk 0:02:46.6]} 8. b4 {[%clk 0:02:39.7]}
8... a5 {[%clk 0:02:25.8]} 9. b5 {[%clk 0:02:31.3]} 9... Na7 {[%clk 0:02:26]}
10. Nxe5 {[%clk 0:02:27.5]} 10... Bxc5 {[%clk 0:02:24.5]} 11. a4 {[%clk
0:02:18.7]} 11... O-O {[%clk 0:02:23.4]} 12. Ba3 {[%clk 0:02:17.4]} 12... Qe7
{[%clk 0:02:17]} 13. Nd3 {[%clk 0:02:09.3]} 13... Bxa3 {[%clk 0:02:12]} 14. Nxa3
{[%clk 0:02:10.2]} 14... Rac8 {[%clk 0:02:09.5]} 15. b6 {[%clk 0:01:47.5]} 15...
Nc6 {[%clk 0:01:57.3]} 16. c4 {[%clk 0:01:45.3]} 16... dxc4 {[%clk 0:01:52]} 17.
Nxc4 {[%clk 0:01:46.2]} 17... Nd4 {[%clk 0:01:47.2]} 18. Ne3 {[%clk 0:01:42.7]}
18... Bg6 {[%clk 0:01:47.2]} 19. Nf4 {[%clk 0:01:39.9]} 19... Rfd8 {[%clk
0:01:34.3]} 20. Nxg6 {[%clk 0:01:35.8]} 20... fxg6 {[%clk 0:01:35.2]} 21. Kh1
{[%clk 0:01:30.2]} 21... Nc2 {[%clk 0:01:31.2]} 22. Qc1 {[%clk 0:00:58.8]} 22...
Nxa1 {[%clk 0:01:27.1]} 23. Qxa1 {[%clk 0:00:59]} 23... Rd2 {[%clk 0:01:18.6]}
24. Qb1 {[%clk 0:00:52]} 24... Kh7 {[%clk 0:00:59.1]} 25. Bf3 {[%clk 0:00:46.7]}
25... Qb4 {[%clk 0:00:55]} 26. Qxb4 {[%clk 0:00:18.4]} 26... axb4 {[%clk
0:00:55.8]} 27. Bxb7 {[%clk 0:00:18.9]} 27... Rb8 {[%clk 0:00:54.8]} 28. Nc4
{[%clk 0:00:19.4]} 28... Ra2 {[%clk 0:00:20.4]} 29. Bc6 {[%clk 0:00:17.8]} 29...
b3 {[%clk 0:00:20.6]} 30. Rb1 {[%clk 0:00:17]} 30... b2 {[%clk 0:00:18.9]} 31.
a5 {[%clk 0:00:15.4]} 31... Ra1 {[%clk 0:00:13.8]} 32. Nd2 {[%clk 0:00:14.7]}
32... Rd8 {[%clk 0:00:12.6]} 33. b7 {[%clk 0:00:15.3]} 33... Rxd2 {[%clk
0:00:12.2]} 34. b8=Q {[%clk 0:00:15.3]} 34... Rxb1+ {[%clk 0:00:12.9]} 35. Kg2
{[%clk 0:00:15.8]} 35... Rc1 {[%clk 0:00:13.5]} 36. a6 {[%clk 0:00:13.3]} 36...
b1=Q {[%clk 0:00:14]} 37. Qxb1 {[%clk 0:00:13.5]} 37... Rxb1 {[%clk 0:00:14.7]}
38. a7 {[%clk 0:00:14.4]} 38... Ra1 {[%clk 0:00:15.4]} 39. a8=Q {[%clk
0:00:15.3]} 39... Rxa8 {[%clk 0:00:15.4]} 40. Bxa8 {[%clk 0:00:16.2]} 40... Rxe2
{[%clk 0:00:15.6]} 41. Bf3 {[%clk 0:00:17.1]} 41... Rb2 {[%clk 0:00:15.3]} 42.
h3 {[%clk 0:00:17.5]} 42... g5 {[%clk 0:00:16]} 43. g4 {[%clk 0:00:16.1]} 43...
Kg6 {[%clk 0:00:16.4]} 44. Bc6 {[%clk 0:00:16.3]} 44... Kf7 {[%clk 0:00:16.9]}
45. Kg3 {[%clk 0:00:16]} 45... Ke6 {[%clk 0:00:17.1]} 46. f3 {[%clk 0:00:16.4]}
46... Ke5 {[%clk 0:00:17.4]} 47. Ba8 {[%clk 0:00:15.8]} 47... Nd5 {[%clk
0:00:17.3]} 48. Bc6 {[%clk 0:00:15.1]} 48... Nf4 {[%clk 0:00:17.1]} 0-1

[Event "Early-Titled-Tuesday-Blitz-February-06-2024"]
[Site "Chess.com"]
[Date "2024.02.06"]
[Round "10"]
[White "rhungaski"]
[Black "Let_it_be_1"]
[Result "0-1"]
[WhiteElo "2488"]
[BlackElo "2588"]
[TimeControl "180+1"]
[EndTime "9:55:52 PST"]
[Termination "Let_it_be_1 won on time"]

1. e4 {[%clk 0:03:00.9]} 1... e6 {[%clk 0:03:00.2]} 2. d4 {[%clk 0:03:00]} 2...
d5 {[%clk 0:03:00.8]} 3. Nc3 {[%clk 0:03:00.6]} 3... Nf6 {[%clk 0:03:01]} 4. e5
{[%clk 0:03:00.6]} 4... Ne4 {[%clk 0:03:00.7]} 5. Nxe4 {[%clk 0:03:00.6]} 5...
dxe4 {[%clk 0:03:01.2]} 6. Bc4 {[%clk 0:02:59.6]} 6... a6 {[%clk 0:03:01.4]} 7.
a4 {[%clk 0:02:54]} 7... b6 {[%clk 0:03:01.2]} 8. Ne2 {[%clk 0:02:48.4]} 8...
Bb7 {[%clk 0:03:01.3]} 9. Nf4 {[%clk 0:02:48]} 9... Nc6 {[%clk 0:02:52.6]} 10.
Be3 {[%clk 0:02:07.9]} 10... Nb4 {[%clk 0:02:50.8]} 11. O-O {[%clk 0:01:39.6]}
11... Nd5 {[%clk 0:02:50.1]} 12. Qg4 {[%clk 0:01:39.2]} 12... Nxf4 {[%clk
0:02:38.4]} 13. Qxf4 {[%clk 0:01:40.1]} 13... Be7 {[%clk 0:02:36.4]} 14. Qg4
{[%clk 0:01:14.3]} 14... g6 {[%clk 0:02:32.6]} 15. Rfd1 {[%clk 0:01:00.1]} 15...
O-O {[%clk 0:02:30.5]} 16. Bh6 {[%clk 0:00:58.5]} 16... Re8 {[%clk 0:02:30.3]}
17. Bf1 {[%clk 0:00:54.7]} 17... Qc8 {[%clk 0:02:07.4]} 18. c4 {[%clk 0:00:49]}
18... c5 {[%clk 0:02:01]} 19. d5 {[%clk 0:00:30.3]} 19... exd5 {[%clk
0:02:00.7]} 20. Qxc8 {[%clk 0:00:31.2]} 20... Raxc8 {[%clk 0:01:59.2]} 21. cxd5
{[%clk 0:00:32.1]} 21... Bf8 {[%clk 0:01:56]} 22. d6 {[%clk 0:00:20.6]} 22...
Rcd8 {[%clk 0:01:32.4]} 23. Bg5 {[%clk 0:00:19.4]} 23... Rd7 {[%clk 0:01:29.7]}
24. Bf6 {[%clk 0:00:19.3]} 24... Bg7 {[%clk 0:01:22.8]} 25. a5 {[%clk 0:00:19]}
25... b5 {[%clk 0:01:08.8]} 26. Rac1 {[%clk 0:00:19]} 26... Bxf6 {[%clk
0:01:04.7]} 27. exf6 {[%clk 0:00:19.9]} 27... c4 {[%clk 0:01:01]} 28. b3 {[%clk
0:00:20.3]} 28... Re6 {[%clk 0:00:59.3]} 29. bxc4 {[%clk 0:00:19.9]} 29... bxc4
{[%clk 0:00:31.1]} 30. Bxc4 {[%clk 0:00:20.8]} 30... Rxf6 {[%clk 0:00:24.9]} 31.
Rb1 {[%clk 0:00:19.9]} 31... Bc6 {[%clk 0:00:20.5]} 32. Rb6 {[%clk 0:00:13.7]}
32... Rfxd6 {[%clk 0:00:20.4]} 33. Rxd6 {[%clk 0:00:12.9]} 33... Rxd6 {[%clk
0:00:20.9]} 34. h4 {[%clk 0:00:10.5]} 34... Rd1+ {[%clk 0:00:15.7]} 35. Kh2
{[%clk 0:00:10.6]} 35... Bb5 {[%clk 0:00:15]} 36. Bb3 {[%clk 0:00:08.4]} 36...
Rd3 {[%clk 0:00:11.8]} 37. Ba2 {[%clk 0:00:05.9]} 37... Ra3 {[%clk 0:00:11.4]}
38. Bd5 {[%clk 0:00:05.7]} 38... Rxa5 {[%clk 0:00:10.7]} 39. Rb7 {[%clk
0:00:05.9]} 39... Be8 {[%clk 0:00:10.7]} 40. Bxe4 {[%clk 0:00:05.4]} 40... Ra4
{[%clk 0:00:10.1]} 41. f3 {[%clk 0:00:05.7]} 41... Kf8 {[%clk 0:00:09.4]} 42.
Rb8 {[%clk 0:00:05.7]} 42... Ra3 {[%clk 0:00:07.3]} 43. Bc6 {[%clk 0:00:04.4]}
43... Re3 {[%clk 0:00:07.4]} 44. Ra8 {[%clk 0:00:02.4]} 44... Re6 {[%clk
0:00:07.1]} 0-1

[Event "Early-Titled-Tuesday-Blitz-February-06-2024"]
[Site "Chess.com"]
[Date "2024.02.06"]
[Round "10"]
[White "KhazhatulyAlikhan"]
[Black "BestestBP"]
[Result "1-0"]
[WhiteElo "2405"]
[BlackElo "2258"]
[TimeControl "180+1"]
[EndTime "9:55:52 PST"]
[Termination "KhazhatulyAlikhan won by checkmate"]

1. e4 {[%clk 0:02:59.3]} 1... e5 {[%clk 0:02:51.6]} 2. Nf3 {[%clk 0:02:59.3]}
2... Nc6 {[%clk 0:02:51.1]} 3. Nc3 {[%clk 0:02:59.3]} 3... Nf6 {[%clk 0:02:49]}
4. Bb5 {[%clk 0:02:58.9]} 4... Bb4 {[%clk 0:02:39.5]} 5. Bxc6 {[%clk 0:02:46]}
5... dxc6 {[%clk 0:02:33.4]} 6. d3 {[%clk 0:02:46.1]} 6... Nd7 {[%clk
0:02:28.2]} 7. O-O {[%clk 0:02:46.3]} 7... O-O {[%clk 0:02:24.9]} 8. Ne2 {[%clk
0:02:44.6]} 8... f6 {[%clk 0:02:13.9]} 9. Ng3 {[%clk 0:02:41.7]} 9... Nb6 {[%clk
0:02:08.3]} 10. Nh4 {[%clk 0:02:35.4]} 10... g6 {[%clk 0:02:01.4]} 11. Bh6
{[%clk 0:02:34.5]} 11... Rf7 {[%clk 0:02:00.3]} 12. Qf3 {[%clk 0:02:32.8]} 12...
Bf8 {[%clk 0:01:46.4]} 13. Bxf8 {[%clk 0:02:32.6]} 13... Qxf8 {[%clk 0:01:47]}
14. Qe3 {[%clk 0:02:27.4]} 14... Be6 {[%clk 0:01:43.1]} 15. a4 {[%clk
0:02:17.6]} 15... a6 {[%clk 0:01:31.6]} 16. b3 {[%clk 0:02:05.5]} 16... Rd8
{[%clk 0:01:24]} 17. h3 {[%clk 0:01:59.7]} 17... Nc8 {[%clk 0:01:08]} 18. Kh2
{[%clk 0:01:45.8]} 18... Ne7 {[%clk 0:00:44.5]} 19. Rae1 {[%clk 0:01:28.7]}
19... b6 {[%clk 0:00:39.3]} 20. Kg1 {[%clk 0:01:19.6]} 20... c5 {[%clk
0:00:36.7]} 21. Kh2 {[%clk 0:01:19.4]} 21... Nc6 {[%clk 0:00:36.7]} 22. Ne2
{[%clk 0:01:17.2]} 22... Nd4 {[%clk 0:00:31.9]} 23. Nxd4 {[%clk 0:01:16.8]}
23... cxd4 {[%clk 0:00:32.8]} 24. Qg3 {[%clk 0:01:17]} 24... Rg7 {[%clk
0:00:25.6]} 25. Re2 {[%clk 0:01:07.4]} 25... Qe7 {[%clk 0:00:15.4]} 26. f4
{[%clk 0:01:00.1]} 26... exf4 {[%clk 0:00:14.7]} 27. Rxf4 {[%clk 0:01:00.8]}
27... Rf8 {[%clk 0:00:09.4]} 28. Ref2 {[%clk 0:00:58.3]} 28... Qd6 {[%clk
0:00:09.3]} 29. R4f3 {[%clk 0:00:58]} 29... Qxg3+ {[%clk 0:00:08.9]} 30. Rxg3
{[%clk 0:00:58.9]} 30... Rgf7 {[%clk 0:00:06.1]} 31. Rgf3 {[%clk 0:00:57.4]}
31... Kg7 {[%clk 0:00:06]} 32. g4 {[%clk 0:00:55.4]} 32... Bd7 {[%clk
0:00:04.4]} 33. Kg3 {[%clk 0:00:55.5]} 33... c5 {[%clk 0:00:04.4]} 34. Ng2
{[%clk 0:00:55.4]} 34... b5 {[%clk 0:00:04]} 35. axb5 {[%clk 0:00:55.5]} 35...
axb5 {[%clk 0:00:04.1]} 36. Nf4 {[%clk 0:00:56.4]} 36... Rc8 {[%clk 0:00:03.2]}
37. Nd5 {[%clk 0:00:56.4]} 37... f5 {[%clk 0:00:03.1]} 38. gxf5 {[%clk
0:00:56.1]} 38... gxf5 {[%clk 0:00:03.1]} 39. exf5 {[%clk 0:00:56.9]} 39... Bc6
{[%clk 0:00:03.3]} 40. f6+ {[%clk 0:00:54]} 40... Kf8 {[%clk 0:00:03.8]} 41. Ne7
{[%clk 0:00:50.4]} 41... Bxf3 {[%clk 0:00:03.2]} 42. Nxc8 {[%clk 0:00:51]} 42...
Bd5 {[%clk 0:00:01.6]} 43. Nd6 {[%clk 0:00:49.3]} 43... Rd7 {[%clk 0:00:01]} 44.
Nxb5 {[%clk 0:00:49.5]} 44... c4 {[%clk 0:00:01.9]} 45. bxc4 {[%clk 0:00:49.6]}
45... Bf7 {[%clk 0:00:02.8]} 46. Rf4 {[%clk 0:00:48.9]} 46... Rd8 {[%clk
0:00:03.5]} 47. Nxd4 {[%clk 0:00:49.2]} 47... Rb8 {[%clk 0:00:04.1]} 48. c5
{[%clk 0:00:49.4]} 48... Rb1 {[%clk 0:00:04.3]} 49. c6 {[%clk 0:00:49.2]} 49...
Rg1+ {[%clk 0:00:04.6]} 50. Kh2 {[%clk 0:00:49.7]} 50... Ra1 {[%clk 0:00:03.9]}
51. Nb5 {[%clk 0:00:44.2]} 51... Ra8 {[%clk 0:00:04.8]} 52. Nd6 {[%clk
0:00:44.1]} 52... Ra7 {[%clk 0:00:04.1]} 53. Rb4 {[%clk 0:00:43.3]} 53... Be8
{[%clk 0:00:02.7]} 54. Rb8 {[%clk 0:00:43]} 54... Rc7 {[%clk 0:00:02.3]} 55.
Rxe8# {[%clk 0:00:43]} 1-0

[Event "Early-Titled-Tuesday-Blitz-February-06-2024"]
[Site "Chess.com"]
[Date "2024.02.06"]
[Round "10"]
[White "ImportedItalianMaple"]
[Black "Akewjon"]
[Result "0-1"]
[WhiteElo "2515"]
[BlackElo "2774"]
[TimeControl "180+1"]
[EndTime "9:55:55 PST"]
[Termination "Akewjon won on time"]

1. Nf3 {[%clk 0:03:00.9]} 1... Nf6 {[%clk 0:02:59.8]} 2. g3 {[%clk 0:03:00.2]}
2... d5 {[%clk 0:02:57.5]} 3. Bg2 {[%clk 0:02:58.7]} 3... e6 {[%clk 0:02:57.8]}
4. O-O {[%clk 0:02:59.1]} 4... Be7 {[%clk 0:02:58.3]} 5. c4 {[%clk 0:02:59.6]}
5... O-O {[%clk 0:02:56.4]} 6. b3 {[%clk 0:03:00]} 6... c5 {[%clk 0:02:54.4]} 7.
cxd5 {[%clk 0:02:54.2]} 7... Nxd5 {[%clk 0:02:53.5]} 8. Bb2 {[%clk 0:02:52.9]}
8... Nc6 {[%clk 0:02:52.8]} 9. d4 {[%clk 0:02:51.3]} 9... cxd4 {[%clk
0:02:52.9]} 10. Nxd4 {[%clk 0:02:51.7]} 10... Bd7 {[%clk 0:02:53.2]} 11. Nc3
{[%clk 0:02:49.6]} 11... Nxd4 {[%clk 0:02:10.4]} 12. Nxd5 {[%clk 0:02:31.2]}
12... Nxe2+ {[%clk 0:02:08.6]} 13. Qxe2 {[%clk 0:02:31.4]} 13... exd5 {[%clk
0:02:09.2]} 14. Bxd5 {[%clk 0:02:29.5]} 14... Bc6 {[%clk 0:01:19.2]} 15. Bxc6
{[%clk 0:02:25.5]} 15... bxc6 {[%clk 0:01:20.1]} 16. Rfd1 {[%clk 0:02:19.3]}
16... Qe8 {[%clk 0:01:15.7]} 17. Qg4 {[%clk 0:02:11.7]} 17... f6 {[%clk
0:01:06.8]} 18. Re1 {[%clk 0:02:05.9]} 18... Qf7 {[%clk 0:01:06.5]} 19. Rad1
{[%clk 0:01:09.6]} 19... Rfd8 {[%clk 0:01:00.9]} 20. Rd7 {[%clk 0:00:59.5]}
20... Rxd7 {[%clk 0:00:51.6]} 21. Qxd7 {[%clk 0:01:00]} 21... Bb4 {[%clk
0:00:52.5]} 22. Rd1 {[%clk 0:00:59.3]} 22... Qxd7 {[%clk 0:00:49.4]} 23. Rxd7
{[%clk 0:00:59.8]} 23... a5 {[%clk 0:00:45.2]} 24. Bd4 {[%clk 0:00:52.5]} 24...
a4 {[%clk 0:00:40]} 25. Rc7 {[%clk 0:00:45.9]} 25... Ra6 {[%clk 0:00:26.5]} 26.
Kg2 {[%clk 0:00:42.5]} 26... Bd6 {[%clk 0:00:25.9]} 27. Rc8+ {[%clk 0:00:32.3]}
27... Kf7 {[%clk 0:00:25.8]} 28. bxa4 {[%clk 0:00:32.8]} 28... Ke6 {[%clk
0:00:26]} 29. a5 {[%clk 0:00:20.5]} 29... Rxa5 {[%clk 0:00:20.2]} 30. Rxc6
{[%clk 0:00:15.7]} 30... Kd5 {[%clk 0:00:20.8]} 31. Bc3 {[%clk 0:00:15.7]} 31...
Rxa2 {[%clk 0:00:19.1]} 32. Rc8 {[%clk 0:00:11.6]} 32... Rc2 {[%clk 0:00:18.8]}
33. Kf3 {[%clk 0:00:09.4]} 33... h5 {[%clk 0:00:17.9]} 34. h4 {[%clk 0:00:09.4]}
34... g5 {[%clk 0:00:15.4]} 35. hxg5 {[%clk 0:00:09.5]} 35... fxg5 {[%clk
0:00:16.3]} 36. Ke3 {[%clk 0:00:04.9]} 36... Bc5+ {[%clk 0:00:15.7]} 37. Kd3
{[%clk 0:00:05.5]} 37... Rxf2 {[%clk 0:00:16]} 38. Rg8 {[%clk 0:00:05.2]} 38...
Rf3+ {[%clk 0:00:16.2]} 39. Kc2 {[%clk 0:00:05.5]} 39... Rxg3 {[%clk 0:00:17.1]}
40. Bd2 {[%clk 0:00:05.2]} 40... g4 {[%clk 0:00:16.3]} 41. Rg5+ {[%clk
0:00:05.5]} 41... Kc4 {[%clk 0:00:16.1]} 42. Rxh5 {[%clk 0:00:05.8]} 42... Rg2
{[%clk 0:00:16.8]} 43. Kd1 {[%clk 0:00:06]} 43... Bd4 {[%clk 0:00:16.6]} 44. Rg5
{[%clk 0:00:05.8]} 44... Kd3 {[%clk 0:00:16.8]} 45. Be1 {[%clk 0:00:05.4]} 45...
Ra2 {[%clk 0:00:15.2]} 46. Bd2 {[%clk 0:00:04.1]} 46... Rxd2+ {[%clk 0:00:15.2]}
0-1